bitfinex-derivatives/quotes_ETHF0:USTF0_20250528
["timestamp","ask_amount","ask_price","bid_price","bid_amount"]
[1748428871177,0.75855,2635.6,2635.5,6.58496]
[1748428871387,3.96635,2635.6,2635.5,6.58496]
[1748428872483,1.355,2635.7,2635.6,0.75855]
[1748428872685,1.355,2635.7,2635.6,2.03195]
[1748428872886,3.96629,2635.9,2635.8,0.7585]
[1748428873279,7.17409477,2635.9,2635.8,0.7585]
[1748428875391,0.7585,2635.8,2635.7,1.2734]
[1748428875587,2.0285,2635.8,2635.7,1.2734]
[1748428875992,2.0285,2635.8,2635.7,2.03192]
[1748428876184,1.27,2635.8,2635.5,4.5754]
[1748428876386,1.89646,2635.5,2634.4,3.2078]
[1748428876593,7.17424477,2635.3,2635.2,55.978]
[1748428876887,7.17424477,2635.3,2635.2,60.67467]
[1748428877091,3.96644,2635.3,2635.2,21.683]
[1748428877287,5.29224,2635.3,2635.2,22.44167]
[1748428877985,4.5336,2635.3,2635.2,22.44167]
[1748428878884,3.2078,2635.6,2635.3,1.89658]
[1748428879188,1.3258,2635.6,2635.5,0.75858]
[1748428879393,0.75851,2635.8,2635.7,0.7585]
[1748428879592,3.96631477,2635.8,2635.7,0.7585]
[1748428879792,2.08431,2635.8,2635.7,0.7585]
[1748428880588,2.08431,2635.8,2635.7,1.4351]
[1748428884799,2.08431,2635.8,2635.7,19.1761]
[1748428884998,0.75852,2635.7,2635.6,23.08613]
[1748428885198,5.22642477,2635.7,2635.6,23.08613]
[1748428885499,0.75855,2635.6,2635.5,3.929]
[1748428885694,9.77085477,2635.6,2635.5,3.929]
[1748428886094,11.01981206,2635.6,2635.5,3.929]
[1748428886294,9.77085477,2635.6,2635.5,3.929]
[1748428886889,9.77085477,2635.6,2635.5,4.68758]
[1748428887290,9.77085477,2635.6,2635.2,3.80977]
[1748428887291,0.75864,2635.3,2635.2,3.929]
[1748428887593,7.17424477,2635.3,2635.2,21.669]
[1748428893111,7.17424477,2635.3,2635.2,3.929]
[1748428893314,0.75873,2635.0,2634.9,3.93378834]
[1748428893515,7.17433477,2635.0,2634.9,3.93378834]
[1748428894213,8.53133477,2635.0,2634.9,0.00378834]
[1748428894915,8.53133477,2635.0,2634.9,0.68508834]
[1748428901622,2.11573,2635.0,2634.9,1.44383834]
[1748428901825,0.75873,2635.0,2634.9,2.70393834]
[1748428902028,4.5773,2635.3,2634.9,1.94518834]
[1748428902330,3.96644,2635.3,2635.2,0.75867]
[1748428902528,3.96644,2635.3,2635.2,4.68867]
[1748428903620,3.2078,2635.3,2635.2,4.68867]
[1748428904127,3.96644,2635.3,2635.2,4.68867]
[1748428904329,3.2078,2635.3,2635.2,4.68867]
[1748428904724,3.96644,2635.3,2635.2,21.665]
[1748428905228,3.96644,2635.3,2635.2,22.9265]
[1748428906424,3.96644,2635.3,2635.2,22.9245]
[1748428910131,3.96644,2635.3,2635.2,23.68317]
[1748428910330,3.96644,2635.3,2635.2,22.9245]
[1748428910936,3.96644,2635.3,2635.2,22.9215]
[1748428912227,3.96644,2635.3,2635.2,23.68017]
[1748428913228,3.96644,2635.3,2635.2,23.67917]
[1748428914834,3.96644,2635.3,2635.2,22.9205]
[1748428915736,3.96644,2635.3,2635.2,23.67917]
[1748428916334,3.96644,2635.3,2635.2,5.1915]
[1748428916536,3.96644,2635.3,2635.2,22.9185]
[1748428916834,3.96644,2635.3,2635.2,23.67717]
[1748428921531,3.2078,2635.3,2635.2,23.67717]
[1748428921738,3.96644,2635.3,2635.2,23.67717]
[1748428921937,1.2986,2635.5,2635.2,22.9185]
[1748428922238,3.96641477,2635.5,2635.4,0.75858]
[1748428922437,0.75861,2635.5,2635.4,0.75858]
[1748428922740,0.75861,2635.5,2635.4,2.02278]
[1748428923140,0.75861,2635.4,2635.3,0.6742]
[1748428923344,0.75861,2635.4,2635.3,18.3972]
[1748428923843,0.75861,2635.4,2635.3,0.6742]
[1748428924050,0.75861,2635.4,2635.3,19.15584]
[1748428932753,0.75861,2635.4,2635.3,20.41074]
[1748428934554,2.0558,2635.5,2635.4,0.75861]
[1748428934751,2.0558,2635.5,2635.4,2.01351]
[1748428935051,0.7586,2635.5,2635.4,2.01351]
[1748428935251,3.96638,2635.6,2635.5,0.75858]
[1748428935554,2.06444,2635.7,2635.6,0.75855]
[1748428935754,2.06444,2635.7,2635.6,4.67855]
[1748428935949,2.06444,2635.7,2635.6,5.98735]
[1748428936455,3.2078,2635.9,2635.6,5.98735]
[1748428936753,3.96629477,2635.8,2635.7,2.06732]
[1748428937052,7.17409477,2635.9,2635.8,0.75849]
[1748428937244,7.17409477,2635.9,2635.8,2.06729]
[1748428938753,7.17409477,2635.9,2635.8,1.3088]
[1748428938954,7.17409477,2635.9,2635.8,2.0673]
[1748428939549,3.96629,2635.9,2635.8,2.0673]
[1748428939748,3.2078,2635.9,2635.8,2.0673]
[1748428940848,1.3059,2636.0,2635.9,0.75847]
[1748428941248,3.2078,2636.2,2636.1,0.75841]
[1748428941448,3.2078,2636.2,2636.1,22.38941]
[1748428941951,3.2078,2636.2,2636.1,24.40951]
[1748428942854,3.96618,2636.2,2636.1,24.40951]
[1748428943049,4.4468,2636.2,2636.1,24.40951]
[1748428945652,0.75852,2635.8,2635.7,0.75849]
[1748428945851,0.75858,2635.5,2635.4,0.6412]
[1748428946061,0.75861,2635.4,2635.3,4.66762]
[1748428946263,4.53350477,2635.4,2635.3,4.66762]
[1748428946462,1.3257,2635.4,2635.3,4.66762]
[1748428946665,1.3257,2635.4,2635.3,22.37362]
[1748428947680,3.2078,2635.5,2635.3,22.37362]
[1748428947681,3.96631,2635.8,2635.7,0.75852]
[1748428947873,3.96631,2635.8,2635.6,0.75853]
[1748428947874,0.75854,2635.7,2635.6,0.75853]
[1748428948075,2.07424,2635.7,2635.6,0.75853]
[1748428948278,5.28204477,2635.7,2635.6,0.75853]
[1748428948577,4.52350477,2635.7,2635.3,21.615]
[1748428948771,3.20780477,2635.4,2635.3,22.37364]
[1748428949174,1.3157,2635.5,2635.4,0.75861]
[1748428949575,4.52350477,2635.5,2635.4,0.75861]
[1748428951681,4.52350477,2635.5,2635.4,2.01591]
[1748428951973,3.2078,2635.6,2635.5,0.75858]
[1748428952179,3.2078,2635.6,2635.5,2.01588]
[1748428952381,1.3067,2635.8,2635.7,0.75852]
[1748428952582,1.3067,2635.8,2635.7,4.66852]
[1748428953079,1.3067,2635.8,2635.7,5.92582]
[1748428962986,3.2078,2636.0,2635.7,5.92582]
[1748428962987,3.2078,2636.0,2635.9,0.75846]
[1748428963189,7.89794119,2636.0,2635.9,0.75846]
[1748428963385,7.89794116,2636.0,2635.9,0.75846]
[1748428963891,7.89795713,2636.0,2635.9,0.75846]
[1748428964388,7.89795925,2636.0,2635.9,0.75846]
[1748428964789,7.89821148,2636.0,2635.9,0.75846]
[1748428965086,7.72200477,2636.0,2635.9,0.75846]
[1748428965294,7.89821028,2636.0,2635.9,0.75846]
[1748428965692,7.72200477,2636.0,2635.9,0.75846]
[1748428965990,7.89821753,2636.0,2635.9,0.75846]
[1748428966191,7.72200477,2636.0,2635.9,0.75846]
[1748428967492,8.48043477,2636.0,2635.9,0.75846]
[1748428970395,7.72200477,2636.0,2635.9,0.75846]
[1748428971395,4.51420477,2636.0,2635.9,0.75846]
[1748428972090,5.27263477,2636.0,2635.9,0.75846]
[1748428978595,5.44915083,2636.0,2635.9,0.75846]
[1748428979401,5.44915307,2636.0,2635.9,0.75846]
[1748428979588,5.44918134,2636.0,2635.9,0.75846]
[1748428980696,5.4492651,2636.0,2635.9,0.75846]
[1748428981093,4.6908351,2636.0,2635.9,0.75846]
[1748428982099,4.51420477,2636.0,2635.9,0.75846]
[1748428982300,5.96102138,2636.0,2635.9,0.75846]
[1748428982599,5.96107949,2636.0,2635.9,0.75846]
[1748428982792,6.71950949,2636.0,2635.9,0.75846]
[1748428983189,6.5427447,2636.0,2635.9,0.75846]
[1748428983494,6.71950946,2636.0,2635.9,0.75846]
[1748428983794,6.71951979,2636.0,2635.9,0.75846]
[1748428984194,6.71951972,2636.0,2635.9,0.75846]
[1748428984495,6.71951874,2636.0,2635.9,0.75846]
[1748428984802,6.71970561,2636.0,2635.9,0.75846]
[1748428985399,6.71970678,2636.0,2635.9,0.75846]
[1748428986196,6.54293126,2636.0,2635.9,0.75846]
[1748428986400,0.75849,2635.8,2635.7,3.898]
[1748428986698,0.75858,2635.5,2635.4,22.96478]
[1748428987104,3.96638477,2635.5,2635.4,1.38578]
[1748428988301,3.20780477,2635.5,2635.4,1.38578]
[1748428989095,4.45630477,2635.5,2635.4,1.38578]
[1748428992203,5.21488477,2635.5,2635.4,1.38578]
[1748428992403,8.42268477,2635.5,2635.4,1.38581]
[1748428992606,8.42268477,2635.5,2635.4,0.75861]
[1748428992801,0.75861,2635.4,2635.3,4.65661]
[1748428992993,5.22381477,2635.4,2635.3,4.65661]
[1748429002107,3.96631,2635.8,2635.7,0.75852]
[1748429002316,6.7559828,2635.8,2635.7,0.75852]
[1748429002510,8.67842589,2635.8,2635.7,0.75852]
[1748429002811,8.50251477,2635.8,2635.7,0.75852]
[1748429003309,4.71212484,2635.8,2635.7,0.75852]
[1748429003506,4.71212484,2635.8,2635.7,22.33152]
[1748429003507,4.53620477,2635.8,2635.7,22.33152]
[1748429003709,3.20780477,2635.8,2635.7,22.33152]
[1748429003913,1.3284,2636.0,2635.9,0.75846]
[1748429004304,4.53620477,2636.0,2635.9,0.75846]
[1748429004511,4.53620477,2636.0,2635.9,2.04406]
[1748429005113,7.74400477,2636.0,2635.9,2.04406]
[1748429006716,0.75852,2635.8,2635.7,0.7585]
[1748429007010,3.96632477,2635.8,2635.7,22.3165]
[1748429007215,0.75852,2635.8,2635.7,22.3165]
[1748429007805,3.96632477,2635.8,2635.7,22.3155]
[1748429008214,3.96632477,2635.8,2635.7,22.3145]
[1748429009011,3.96629477,2635.8,2635.7,22.3145]
[1748429009212,3.20780477,2635.8,2635.7,22.3145]
[1748429009917,4.57880477,2635.8,2635.7,22.3145]
[1748429012419,5.33729477,2635.8,2635.7,22.3145]
[1748429013909,5.33729477,2635.8,2635.7,0.7585]
[1748429014117,5.33729477,2635.8,2635.7,18.4235]
[1748429016116,8.54509477,2635.8,2635.7,18.4235]
[1748429016917,8.54509477,2635.8,2635.7,0.7585]
[1748429017215,8.54509477,2635.8,2635.7,22.3075]
[1748429017517,8.54509477,2635.8,2635.7,0.7585]
[1748429017717,8.54509477,2635.8,2635.7,22.3065]
[1748429018516,0.75855,2635.6,2635.5,4.5361]
[1748429018714,3.96635477,2635.6,2635.5,0.6501]
[1748429018918,0.75864,2635.4,2635.3,4.64462]
[1748429019108,7.17424477,2635.4,2635.3,22.99232]
[1748429019313,8.42334477,2635.4,2635.3,22.99232]
[1748429021122,8.42334477,2635.4,2635.3,1.44532]
[1748429021419,8.42334477,2635.4,2635.3,22.99132]
[1748429026621,7.66470477,2635.4,2635.3,22.99132]
[1748429027220,3.2078,2635.4,2635.3,24.33992]
[1748429028725,3.96633,2635.7,2635.6,0.75855]
[1748429029023,5.45770547,2635.7,2635.6,0.75855]
[1748429029221,8.66551024,2635.7,2635.6,0.75855]
[1748429029614,8.66551024,2635.7,2635.6,1.40535]
[1748429029815,8.66559635,2635.7,2635.6,1.40535]
[1748429030215,8.66559602,2635.7,2635.6,22.94735]
[1748429030418,7.17413477,2635.7,2635.6,22.94735]
[1748429032022,0.75855,2635.6,2635.5,0.75857]
[1748429032225,0.75861,2635.5,2635.4,18.41257]
[1748429032421,3.96641477,2635.5,2635.4,0.75857]
[1748429032615,5.23901477,2635.5,2635.4,0.75857]
[1748429035525,4.48040477,2635.5,2635.4,0.75857]
[1748429035923,3.20780477,2635.5,2635.4,2.00327]
[1748429037530,4.55770477,2635.5,2635.4,2.00327]
[1748429039132,5.31628477,2635.5,2635.4,2.00327]
[1748429039331,8.52408477,2635.5,2635.4,2.00327]
[1748429039930,7.76550477,2635.5,2635.4,2.00327]
[1748429040532,8.52408477,2635.5,2635.4,2.00327]
[1748429040931,9.84022131,2635.5,2635.4,2.00327]
[1748429041132,8.52408477,2635.5,2635.4,2.00327]
[1748429041441,9.84030607,2635.5,2635.4,2.00327]
[1748429043333,9.84043284,2635.5,2635.4,2.00327]
[1748429043530,10.01686074,2635.5,2635.4,2.00327]
[1748429044035,9.84043284,2635.5,2635.4,2.00327]
[1748429044236,10.01686175,2635.5,2635.4,2.00327]
[1748429045132,10.01687699,2635.5,2635.4,2.00327]
[1748429045936,9.25831687,2635.5,2635.4,2.00327]
[1748429046138,6.05051687,2635.5,2635.4,2.00327]
[1748429046333,6.05051728,2635.5,2635.4,2.00327]
[1748429046736,6.05052083,2635.5,2635.4,2.00327]
[1748429047235,6.63263284,2635.5,2635.4,2.00327]
[1748429047429,6.05054176,2635.5,2635.4,19.64727]
[1748429047633,6.80912176,2635.5,2635.4,19.64727]
[1748429047839,6.80984592,2635.5,2635.4,19.64727]
[1748429048434,6.80988087,2635.5,2635.4,19.64727]
[1748429048641,6.80991267,2635.5,2635.4,19.64727]
[1748429048831,5.874777,2635.5,2635.4,19.64727]
[1748429049037,1.49362802,2635.5,2635.4,19.64727]
[1748429049239,1.31707223,2635.5,2635.4,19.64727]
[1748429049538,2.08411,2635.8,2635.7,0.75852]
[1748429049937,5.46845252,2635.8,2635.7,0.75852]
[1748429050137,5.46844034,2635.8,2635.7,0.75852]
[1748429050337,5.4684354,2635.8,2635.7,0.75852]
[1748429050538,6.77226892,2635.8,2635.7,0.75852]
[1748429050737,1.48034844,2635.8,2635.7,4.63352]
[1748429050945,0.75844,2636.0,2635.9,0.75846]
[1748429051136,2.23736069,2636.0,2635.9,0.75846]
[1748429051442,5.44516546,2636.0,2635.9,0.75846]
[1748429051637,5.44516546,2636.0,2635.9,1.38116]
[1748429052138,5.26866243,2636.0,2635.9,1.38116]
[1748429052341,5.43708305,2636.0,2635.9,1.38116]
[1748429052536,8.46844886,2636.0,2635.9,1.38116]
[1748429052843,8.64488253,2636.0,2635.9,1.38116]
[1748429053145,8.64484009,2636.0,2635.9,1.38116]
[1748429053641,8.64480713,2636.0,2635.9,1.38116]
[1748429054244,8.64480873,2636.0,2635.9,1.38116]
[1748429054444,8.64480657,2636.0,2635.9,1.38116]
[1748429054638,8.46844886,2636.0,2635.9,1.38116]
[1748429054839,8.64480534,2636.0,2635.9,1.38116]
[1748429055345,8.64478142,2636.0,2635.9,1.38116]
[1748429055540,7.88634142,2636.0,2635.9,1.38116]
[1748429055745,7.88632192,2636.0,2635.9,1.38116]
[1748429055945,7.71000886,2636.0,2635.9,1.38116]
[1748429056133,7.88632282,2636.0,2635.9,1.38116]
[1748429056634,7.88632292,2636.0,2635.9,1.38116]
[1748429056845,7.35034883,2636.0,2635.9,1.38116]
[1748429057144,8.65913814,2636.0,2635.9,1.38116]
[1748429057445,7.35033303,2636.0,2635.9,1.38116]
[1748429057642,8.65899874,2636.0,2635.9,1.38116]
[1748429057844,8.65898739,2636.0,2635.9,1.38116]
[1748429058145,8.65898708,2636.0,2635.9,1.38116]
[1748429058845,7.90055708,2636.0,2635.9,1.38116]
[1748429059042,7.72427513,2636.0,2635.9,1.38116]
[1748429059344,7.90054103,2636.0,2635.9,1.38116]
[1748429059545,7.72427513,2636.0,2635.9,1.38116]
[1748429059747,7.9005353,2636.0,2635.9,1.38116]
[1748429060144,7.90052816,2636.0,2635.9,1.38116]
[1748429060345,7.90052897,2636.0,2635.9,1.38116]
[1748429060746,8.65895897,2636.0,2635.9,1.38116]
[1748429060943,9.96774588,2636.0,2635.9,1.38116]
[1748429061342,9.96774608,2636.0,2635.9,1.38116]
[1748429061550,8.48283477,2636.0,2635.9,1.38116]
[1748429062353,7.72440477,2636.0,2635.9,1.38116]
[1748429062647,8.48284477,2636.0,2635.9,1.38116]
[1748429063049,7.72440477,2636.0,2635.9,1.38116]
[1748429065551,8.48284477,2636.0,2635.9,1.38116]
[1748429067249,8.48284477,2636.0,2635.9,22.88316]
[1748429068056,7.72440477,2636.0,2635.9,22.88316]
[1748429068652,4.5166,2636.0,2635.9,22.88316]
[1748429068860,7.72440477,2636.0,2635.9,22.88316]
[1748429070054,3.882,2636.3,2636.0,1.89605]
[1748429070256,1.48163981,2636.2,2636.1,0.75841]
[1748429070556,8.51316477,2636.3,2636.2,0.75838]
[1748429070755,9.99477211,2636.3,2636.2,0.75838]
[1748429070950,9.99477211,2636.3,2636.2,1.41738]
[1748429071156,9.99477609,2636.3,2636.2,1.41738]
[1748429071361,9.99477359,2636.3,2636.2,1.41738]
[1748429071959,9.81857094,2636.3,2636.2,1.41738]
[1748429072264,0.75841,2636.1,2636.0,21.485]
[1748429072460,5.44783022,2636.1,2636.0,21.485]
[1748429072759,6.69423022,2636.1,2636.0,18.38243]
[1748429072961,6.69423022,2636.1,2636.0,17.624]
[1748429073271,6.69427284,2636.1,2636.0,18.38243]
[1748429073855,6.69427284,2636.1,2636.0,17.624]
[1748429074063,6.51802094,2636.1,2636.0,0.75843]
[1748429074367,0.75849,2636.0,2635.9,18.38044]
[1748429074554,5.38896374,2636.0,2635.9,18.38044]
[1748429074758,8.59678781,2636.0,2635.9,18.38044]
[1748429075262,9.89557269,2636.0,2635.9,18.38044]
[1748429075565,9.89560778,2636.0,2635.9,18.38044]
[1748429076057,9.89560806,2636.0,2635.9,0.75844]
[1748429076257,9.71927965,2636.0,2635.9,18.37944]
[1748429076660,9.89563718,2636.0,2635.9,18.37944]
[1748429077371,9.89564293,2636.0,2635.9,18.37944]
[1748429078173,9.89568549,2636.0,2635.9,18.37944]
[1748429078967,9.71927965,2636.0,2635.9,18.37744]
[1748429079171,9.89574438,2636.0,2635.9,0.75844]
[1748429079372,9.89574361,2636.0,2635.9,18.37744]
[1748429079574,9.89676868,2636.0,2635.9,18.37744]
[1748429079965,9.89679827,2636.0,2635.9,0.75844]
[1748429080166,9.89679827,2636.0,2635.9,18.37744]
[1748429080466,9.13829938,2636.0,2635.9,18.37744]
[1748429080665,7.89189938,2636.0,2635.9,18.37744]
[1748429080873,4.68409461,2636.0,2635.9,19.66284]
[1748429081071,3.3843039,2636.0,2635.9,19.66284]
[1748429081574,5.32042246,2636.4,2636.3,0.75835]
[1748429081763,6.7968481,2636.4,2636.3,0.75835]
[1748429081964,10.00465287,2636.4,2636.3,0.75835]
[1748429082173,10.00465109,2636.4,2636.3,0.75835]
[1748429082373,9.82815835,2636.4,2636.3,0.75835]
[1748429082574,10.00465123,2636.4,2636.3,0.75835]
[1748429083075,10.0046553,2636.4,2636.3,0.75835]
[1748429084273,10.00454207,2636.4,2636.3,0.75835]
[1748429084475,9.82805893,2636.4,2636.3,0.75835]
[1748429084675,10.00454127,2636.4,2636.3,0.75835]
[1748429084976,9.82805893,2636.4,2636.3,0.75835]
[1748429085368,10.00453522,2636.4,2636.3,0.75835]
[1748429085780,8.70469971,2636.4,2636.3,0.75835]
[1748429085978,9.9993538,2636.4,2636.3,0.75835]
[1748429086172,9.99935353,2636.4,2636.3,0.75835]
[1748429086675,9.99935353,2636.4,2636.2,6.64036]
[1748429086676,0.75835,2636.3,2636.2,6.64036]
[1748429086866,6.80107769,2636.3,2636.2,6.64036]
[1748429087269,6.80107954,2636.3,2636.2,6.64036]
[1748429087581,6.6246088,2636.3,2636.2,6.64036]
[1748429087780,6.80107824,2636.3,2636.2,6.64036]
[1748429088076,6.80107909,2636.3,2636.2,6.64036]
[1748429088678,5.50642506,2636.3,2636.2,6.64036]
[1748429088978,6.79989087,2636.3,2636.2,6.64036]
[1748429089178,6.79989031,2636.3,2636.2,6.64036]
[1748429089571,6.6234214,2636.3,2636.2,6.64036]
[1748429089771,6.79989031,2636.3,2636.2,6.64036]
[1748429090069,6.79989031,2636.3,2636.2,5.29136]
[1748429090379,6.79989034,2636.3,2636.2,5.29136]
[1748429090568,6.6234214,2636.3,2636.2,5.29136]
[1748429090774,6.79988931,2636.3,2636.2,5.29136]
[1748429090975,6.79989043,2636.3,2636.2,5.29136]
[1748429091278,6.6234214,2636.3,2636.2,5.29136]
[1748429091478,6.79989049,2636.3,2636.2,5.29136]
[1748429091678,6.6234214,2636.3,2636.2,5.29136]
[1748429092180,6.79989179,2636.3,2636.2,5.29136]
[1748429092778,10.00769179,2636.3,2636.2,5.29136]
[1748429092978,9.8312214,2636.3,2636.2,5.29136]
[1748429093279,8.71422468,2636.3,2636.2,5.29136]
[1748429093481,10.00652247,2636.3,2636.2,5.29136]
[1748429093673,10.00652219,2636.3,2636.2,5.29136]
[1748429094180,10.00652258,2636.3,2636.2,5.29136]
[1748429094675,9.83005256,2636.3,2636.2,5.29136]
[1748429094876,10.00652363,2636.3,2636.2,22.89936]
[1748429095076,9.83005256,2636.3,2636.2,22.89936]
[1748429095782,10.00652304,2636.3,2636.2,22.89936]
[1748429096176,9.83005256,2636.3,2636.2,22.89936]
[1748429096678,10.00652182,2636.3,2636.2,22.89936]
[1748429097770,8.71422403,2636.3,2636.2,22.89936]
[1748429097981,10.00643447,2636.3,2636.2,22.89936]
[1748429098481,9.82996521,2636.3,2636.2,22.89936]
[1748429098684,10.00643253,2636.3,2636.2,22.89936]
[1748429098983,9.82996521,2636.3,2636.2,1.43036]
[1748429099185,10.00643339,2636.3,2636.2,22.89636]
[1748429099985,10.00643063,2636.3,2636.2,22.89636]
[1748429100178,10.0064301,2636.3,2636.2,22.89636]
[1748429100483,9.82996521,2636.3,2636.2,22.89636]
[1748429100685,9.24808583,2636.3,2636.2,22.89636]
[1748429101086,9.07161521,2636.3,2636.2,22.89636]
[1748429101287,10.00643324,2636.3,2636.2,22.89636]
[1748429101584,10.00643324,2636.3,2636.2,1.43036]
[1748429101788,10.0064468,2636.3,2636.2,1.43036]
[1748429101984,10.0064468,2636.3,2636.2,19.03336]
[1748429102187,10.00643833,2636.3,2636.2,19.03336]
[1748429102492,10.00648849,2636.3,2636.2,19.03336]
[1748429103184,10.00648787,2636.3,2636.2,19.03336]
[1748429103385,10.00647586,2636.3,2636.2,19.03336]
[1748429103585,9.83001537,2636.3,2636.2,19.03336]
[1748429103788,10.00648447,2636.3,2636.2,19.03336]
[1748429104182,10.00648447,2636.3,2636.2,1.43036]
[1748429104382,9.83001537,2636.3,2636.2,19.03136]
[1748429104581,10.00648463,2636.3,2636.2,19.03136]
[1748429104783,10.00648757,2636.3,2636.2,19.03136]
[1748429105186,10.00649441,2636.3,2636.2,19.03136]
[1748429105386,10.0064944,2636.3,2636.2,19.03136]
[1748429105887,10.0064944,2636.3,2636.2,18.35936]
[1748429106189,10.68647424,2636.3,2636.2,18.35936]
[1748429106387,10.50941537,2636.3,2636.2,18.35936]
[1748429106588,10.68647443,2636.3,2636.2,18.35936]
[1748429106890,10.69064388,2636.3,2636.2,18.35936]
[1748429107088,10.69064662,2636.3,2636.2,18.35936]
[1748429107588,10.69066022,2636.3,2636.2,18.35936]
[1748429107790,10.69065992,2636.3,2636.2,18.35936]
[1748429108091,0.75841,2636.2,2636.1,0.75839]
[1748429108285,6.70122061,2636.2,2636.1,18.35639]
[1748429108590,6.70123809,2636.2,2636.1,18.35639]
[1748429109491,6.7012392,2636.2,2636.1,18.35639]
[1748429109691,6.70123962,2636.2,2636.1,18.35639]
[1748429110186,5.76573482,2636.2,2636.1,18.35639]
[1748429110393,1.4735466,2636.2,2636.1,18.35639]
[1748429110587,1.47361119,2636.2,2636.1,19.64019]
[1748429110793,1.47360996,2636.2,2636.1,19.64019]
[1748429111089,5.43979505,2636.2,2636.1,22.20339]
[1748429111289,6.70029848,2636.2,2636.1,22.20339]
[1748429111690,6.52311482,2636.2,2636.1,22.20339]
[1748429111891,6.70031368,2636.2,2636.1,22.20339]
[1748429112391,6.52311482,2636.2,2636.1,22.20339]
[1748429112592,6.70031164,2636.2,2636.1,22.20339]
[1748429112997,9.90811164,2636.2,2636.1,22.20339]
[1748429113202,9.90811031,2636.2,2636.1,22.20339]
[1748429114093,0.75841,2636.1,2636.0,2.6335]
[1748429114289,6.74924031,2636.1,2636.0,1.3497]
[1748429114686,6.57204482,2636.1,2636.0,1.3497]
[1748429114885,6.74923627,2636.1,2636.0,2.10813]
[1748429115399,6.74923627,2636.1,2636.0,1.3497]
[1748429116284,6.75019581,2636.1,2636.0,1.3497]
[1748429116484,6.75019546,2636.1,2636.0,1.3497]
[1748429116795,6.75019056,2636.1,2636.0,2.10813]
[1748429117294,6.75019223,2636.1,2636.0,2.10813]
[1748429117488,6.57301209,2636.1,2636.0,2.10813]
[1748429117989,6.75018758,2636.1,2636.0,2.10813]
[1748429118190,6.75018714,2636.1,2636.0,2.10813]
[1748429118392,6.75018719,2636.1,2636.0,2.10813]
[1748429118696,6.75018719,2636.1,2636.0,2.10814]
[1748429118892,6.75018496,2636.1,2636.0,0.6833]
[1748429119099,6.75018455,2636.1,2636.0,0.6833]
[1748429119690,6.57301209,2636.1,2636.0,0.6833]
[1748429119903,6.75017158,2636.1,2636.0,0.6833]
[1748429120089,0.75846,2635.9,2635.8,5.2041]
[1748429120390,8.64871113,2635.9,2635.8,5.8748]
[1748429120596,8.64871113,2635.9,2635.8,6.63329]
[1748429120796,8.64869672,2635.9,2635.8,6.63329]
[1748429120996,8.64846203,2635.9,2635.8,6.63329]
[1748429121195,8.64846197,2635.9,2635.8,6.63329]
[1748429122398,8.64845085,2635.9,2635.8,6.63329]
[1748429122598,8.64844308,2635.9,2635.8,6.63329]
[1748429122798,8.64844317,2635.9,2635.8,6.63329]
[1748429122995,8.4712274,2635.9,2635.8,6.63329]
[1748429123196,8.64844341,2635.9,2635.8,6.63329]
[1748429123800,8.64843603,2635.9,2635.8,2.78529]
[1748429124000,8.64843611,2635.9,2635.8,2.78529]
[1748429124397,8.64843653,2635.9,2635.8,2.78529]
[1748429124804,8.64843653,2635.9,2635.8,2.0268]
[1748429125001,0.75849,2635.8,2635.7,4.5036]
[1748429125200,6.70715522,2635.8,2635.7,3.848]
[1748429125401,7.80204265,2635.8,2635.7,3.848]
[1748429125699,7.80209431,2635.8,2635.7,3.848]
[1748429125903,7.97927962,2635.8,2635.7,3.848]
[1748429126104,7.97927958,2635.8,2635.7,3.848]
[1748429126294,7.97927914,2635.8,2635.7,3.848]
[1748429127003,7.80209431,2635.8,2635.7,3.848]
[1748429127199,7.22072583,2635.8,2635.5,0.6199]
[1748429127404,7.17415477,2635.6,2635.5,0.6199]
[1748429127605,7.35127637,2635.6,2635.5,0.6199]
[1748429127801,8.63963282,2635.6,2635.5,0.6199]
[1748429128001,9.93553255,2635.6,2635.5,0.6199]
[1748429128503,9.93549261,2635.6,2635.5,0.6199]
[1748429129402,0.75861,2635.4,2635.3,1.9042]
[1748429129599,3.96641477,2635.4,2635.3,2.558]
[1748429129902,3.96641477,2635.4,2635.3,3.31664]
[1748429131117,3.20780477,2635.4,2635.3,3.31664]
[1748429132504,3.2078,2635.6,2635.3,2.558]
[1748429132710,3.2078,2635.6,2635.5,0.75858]
[1748429133308,3.96635,2635.6,2635.5,0.75858]
[1748429136611,3.2078,2635.6,2635.5,0.75858]
[1748429138406,3.96628,2635.9,2635.8,0.7585]
[1748429138803,7.17408477,2635.9,2635.8,0.7585]
[1748429139113,7.17408477,2635.9,2635.8,2.1067]
[1748429139307,3.2078,2635.9,2635.8,2.1067]
[1748429139814,0.00568246,2636.4,2636.3,0.75835]
[1748429140114,1.47019342,2636.4,2636.3,0.75835]
[1748429140308,4.50102722,2636.4,2636.3,0.75835]
[1748429140501,3.21348723,2636.4,2636.3,0.75835]
[1748429140711,3.21348723,2636.4,2636.3,2.08795]
[1748429140912,0.00568246,2636.4,2636.3,2.08795]
[1748429142609,3.2078,2636.9,2636.8,0.75821]
[1748429142810,0.75814,2637.1,2637.0,0.75812]
[1748429143414,3.96594477,2637.1,2637.0,0.75812]
[1748429144215,5.30354477,2637.1,2637.0,0.75812]
[1748429144604,4.54540477,2637.1,2637.0,0.75812]
[1748429144817,1.3376,2637.1,2637.0,0.75812]
[1748429145317,3.96591,2637.2,2637.1,0.75812]
[1748429145318,3.2078,2637.2,2637.1,0.75812]
[1748429145516,3.96589,2637.2,2637.1,4.59312]
[1748429146014,3.2078,2637.2,2637.1,4.59312]
[1748429146207,3.96589,2637.2,2637.1,4.59312]
[1748429148110,3.2078,2637.2,2637.1,4.59312]
[1748429148415,2.10534246,2637.3,2637.2,0.75809]
[1748429148714,5.31314723,2637.3,2637.2,2.65699]
[1748429149316,5.31314723,2637.3,2637.2,1.8989]
[1748429149511,5.31314723,2637.3,2637.2,0.641]
[1748429150717,5.31314723,2637.3,2637.2,2.65699]